fUST/lending_fUST_20240111
["ID","MTS","AMOUNT","RATE_DAILY","PERIOD"]
[311100321,1704904245917,-500.0,0.00031506,2]
[311100323,1704904245927,-837.61,0.00031506,2]
[311100326,1704904245937,-500.0,0.00031506,2]
[311100327,1704904245949,-831.41,0.00031506,2]
[311100329,1704904245958,-1314.27,0.00031506,2]
[311100331,1704904245968,-526.02,0.00031506,2]
[311100334,1704904245978,-500.0,0.00031506,2]
[311100336,1704904245987,-567.77,0.00031506,2]
[311100337,1704904245998,-552.74,0.00031506,2]
[311100339,1704904246007,-500.0,0.00031506,2]
[311100341,1704904246017,-3033.36,0.00031506,2]
[311100343,1704904246027,-500.0,0.00031506,2]
[311100345,1704904246037,-500.0,0.00031506,2]
[311100347,1704904246046,-802.91,0.00031506,2]
[311100350,1704904246056,-933.32,0.00031506,2]
[311100351,1704904246065,-7419.42,0.00031506,2]
[311100353,1704904246075,-1150.58,0.00031506,2]
[311100355,1704904246084,-5000.0,0.00031553,7]
[311100357,1704904246093,-5000.0,0.00031553,7]
[311100359,1704904246103,-5000.0,0.00031563,7]
[311100361,1704904246112,-3150.0,0.000317,7]
[311100363,1704904246121,-500.0,0.0003178,2]
[311100365,1704904246131,-837.61,0.0003178,2]
[311100367,1704904246141,-500.0,0.0003178,2]
[311100369,1704904246150,-831.41,0.0003178,2]
[311100371,1704904246159,-1314.27,0.0003178,2]
[311100373,1704904246173,-500.0,0.0003178,2]
[311100375,1704904246183,-567.77,0.0003178,2]
[311100377,1704904246193,-552.74,0.0003178,2]
[311100379,1704904246202,-500.0,0.0003178,2]
[311100381,1704904246212,-3033.36,0.0003178,2]
[311100383,1704904246221,-500.0,0.0003178,2]
[311100385,1704904246230,-500.0,0.0003178,2]
[311100387,1704904246240,-802.91,0.0003178,2]
[311100389,1704904246251,-933.32,0.0003178,2]
[311100391,1704904246261,-7419.42,0.0003178,2]
[311100403,1704904246368,-1150.58,0.0003178,2]
[311100405,1704904246377,-489.42776446,0.00031998,4]
[311100407,1704904246386,-120.19533483,0.00031998,4]
[311100444,1704904246737,-500.0,0.00027397,2]
[311100447,1704904246748,-500.0,0.00027671,2]
[311100449,1704904246758,-500.0,0.00027671,2]
[311100451,1704904246767,-433.1075598,0.00027945,2]
[311100453,1704904246778,-66.8924402,0.00027945,2]
[311100455,1704904246788,-500.0,0.00028219,2]
[311100457,1704904246797,-158.6675598,0.00028493,2]
[311100466,1704904246892,-154.87609912,0.00027396,4]
[311100468,1704904246901,-500.0,0.00027397,2]
[311100470,1704904246911,-500.0,0.00027671,2]
[311100472,1704904246921,-150.1941832,0.00028493,2]
[311100474,1704904246931,-7691.85146428,0.00031998,4]
[311100477,1704904246941,-243.92259179,0.00031998,2]
[311100478,1704904246950,-154.90705577,0.00031998,4]
[311100480,1704904246959,-89550.56030519,0.00032,7]
[311101013,1704904290880,205.44934663,0.00027397,30]
[311101014,1704904419048,150.8642222,0.00027934,30]
[311101021,1704904504252,245.223087,0.0001554,2]
[311101028,1704904543376,18865.84842908,0.0001554,2]
[311101029,1704904561323,15487.61129917,0.0001554,2]
[311101033,1704904695430,1351.60839685,0.0001554,5]
[311101034,1704904907495,25246.42560885,0.00015515,2]
[311101037,1704905209092,-154.87609912,0.00015503,2]
[311101038,1704905209112,-166.61009921,0.00015504,2]
[311101039,1704905209131,-521.10576847,0.00015504,2]
[311101040,1704905209149,-154.87609912,0.00015505,2]
[311101041,1704905209165,-3324.11573929,0.00015515,2]
[311101042,1704905353087,-154.87609912,0.00014882,2]
[311101043,1704905353107,-521.10576847,0.00015353,2]
[311101044,1704905353126,-438.6540806,0.00015354,2]
[311101045,1704905353146,-245.223087,0.00015539,2]
[311101046,1704905353166,-171.9384651,0.00016439,2]
[311101047,1704905353185,-154.90705577,0.00016536,2]
[311101048,1704905353203,-155.46392837,0.00016536,2]
[311101049,1704905353221,-166.3781127,0.00016536,2]
[311101050,1704905353240,-294.6959853,0.00016536,2]
[311101051,1704905353259,-154.90705577,0.00016536,2]
[311101052,1704905353278,-999.30048966,0.00016537,2]
[311101053,1704905353297,-560.33964085,0.00016537,2]
[311101054,1704905353321,-154.8915759,0.00016538,2]
[311101055,1704905353339,-154.8915759,0.00016538,2]
[311101056,1704905353360,-209.04863276,0.00016538,2]
[311101057,1704905353379,-520.97192037,0.00016538,2]
[311101058,1704905353397,-1748.75083316,0.00016538,2]
[311101059,1704905353416,-2104.62444559,0.00016538,2]
[311101060,1704905353436,-469.54906413,0.00016538,2]
[311101061,1704905353456,-25121.48418348,0.00016538,2]
[311101062,1704905354156,-57393.34868784,0.00016538,2]
[311101063,1704905354176,-1432.29474808,0.00016539,2]
[311101064,1704905354196,-15376.09177781,0.00016539,2]
[311101065,1704905354215,-489.42776446,0.00016541,2]
[311101066,1704905354235,-12391.42990253,0.00016541,2]
[311101067,1704905354255,-58413.4277405,0.00016543,2]
[311101068,1704905354274,-1112.08388858,0.000195,2]
[311101069,1704905354294,-1195.09669838,0.0002,2]
[311101070,1704905354316,-266.19065175,0.0002,2]
[311101071,1704905354335,-676.96253794,0.0002,2]
[311101072,1704905354355,-326.73090334,0.00021,2]
[311101073,1704905354375,-166.666666,0.00021918,2]
[311101074,1704905354394,-292.83058016,0.00022,4]
[311101075,1704905354412,-3931.75997852,0.00022,2]
[311101076,1704905354432,-156.86767994,0.00022,2]
[311101077,1704905354451,-4917.8600325,0.00022,2]
[311101078,1704905354470,-166.666666,0.00022431,2]
[311101079,1704905354490,-154.87609912,0.000225,2]
[311101080,1704905354509,-166.666666,0.00022944,2]
[311101081,1704905354528,-7802.06033055,0.00023,2]
[311101095,1704905431925,-3453.28512368,0.00016,2]
[311101098,1704905431937,-713.40710563,0.00016,2]
[311101100,1704905431946,-292.83058016,0.00022,4]
[311101102,1704905431955,-154.87609912,0.00022999,4]
[311101104,1704905431964,-397.07109141,0.00023,2]
[311101106,1704905431976,-1424.78058964,0.00023,2]
[311101108,1704905431986,-2093.08732709,0.00023286,2]
[311101110,1704905431996,-9920.80434626,0.00023287,2]
[311101112,1704905432006,-500.0,0.00023288,2]
[311101114,1704905432015,-500.0,0.00023288,2]
[311101116,1704905432025,-500.0,0.00023288,2]
[311101118,1704905432035,-530.03997676,0.00023288,2]
[311101120,1704905432044,-500.0,0.00023288,2]
[311101122,1704905432054,-500.0,0.00023288,2]
[311101123,1704905432063,-500.0,0.00023288,2]
[311101124,1704905432073,-595.36862941,0.00023288,2]
[311101125,1704905432082,-229.5429199,0.00023288,2]
[311101126,1704905432091,-456.10977466,0.00023288,2]
[311101127,1704905432101,-182.38572997,0.00023288,2]
[311101128,1704905432110,-2293.16748545,0.00024,2]
[311101129,1704905432120,-166.666666,0.00024407,2]
[311101130,1704905432129,-166.666666,0.00025072,2]
[311101131,1704905432139,-521.10576847,0.00025737,2]
[311101132,1704905432148,-166.666666,0.00025738,2]
[311101133,1704905432157,-525.91402641,0.00026402,2]
[311101134,1704905432167,-166.666666,0.00026403,2]
[311101135,1704905432176,-733.25771754,0.00027068,2]
[311101136,1704905432185,-166.666666,0.00027068,2]
[311101137,1704905432194,-199.63396392,0.00027297,2]
[311101138,1704905432204,-9098.22062588,0.000273,4]
[311101139,1704905432213,-7953.8,0.00027377,3]
[311101140,1704905432222,-9353.02462883,0.00027386,3]
[311101168,1704905438085,-200.0,0.00023,2]
[311101170,1704905438094,-2079.63666476,0.00023,2]
[311101172,1704905438104,-154.87609912,0.00027395,2]
[311101174,1704905438113,-42.48485622,0.00027395,2]
[311101195,1704905438299,-3889.2751223,0.00027395,2]
[311101197,1704905438307,-156.86767994,0.00027395,2]
[311101199,1704905438316,-4917.8600325,0.00027395,2]
[311101201,1704905438325,-469.54906413,0.00027396,2]
[311101203,1704905438334,-1194.60979452,0.00027396,2]
[311101205,1704905438343,-12247.61458488,0.00027396,2]
[311101207,1704905438352,-562.29279572,0.00027397,2]
[311101209,1704905438361,-500.0,0.00027397,2]
[311101211,1704905438371,-500.0,0.00027397,2]
[311101213,1704905438380,-500.0,0.00027397,2]
[311101215,1704905438389,-162.28174723,0.00027397,2]
[311101217,1704905438398,-500.0,0.00027397,2]
[311101219,1704905438406,-500.0,0.00027397,2]
[311101221,1704905438415,-500.0,0.00027397,2]
[311101223,1704905438424,-500.0,0.00027397,2]
[311101225,1704905438433,-500.0,0.00027397,2]
[311101227,1704905438442,-500.0,0.00027397,2]
[311101229,1704905438451,-500.0,0.00027397,2]
[311101231,1704905438460,-500.0,0.00027397,2]
[311101233,1704905438469,-500.0,0.00027397,2]
[311101235,1704905438478,-519.38443112,0.00027397,2]
[311101237,1704905438487,-500.0,0.00027397,2]
[311101239,1704905438496,-500.0,0.00027397,2]
[311101241,1704905438505,-500.0,0.00027397,2]
[311101243,1704905438514,-500.0,0.00027397,2]
[311101245,1704905438523,-500.0,0.00027397,2]
[311101247,1704905438532,-500.0,0.00027397,2]
[311101249,1704905438542,-500.0,0.00027397,2]
[311101251,1704905438550,-500.0,0.00027397,2]
[311101253,1704905438559,-500.0,0.00027397,2]
[311101255,1704905438568,-500.0,0.00027397,2]
[311101256,1704905438577,-500.0,0.00027397,2]
[311101259,1704905438587,-500.0,0.00027397,2]
[311101261,1704905438596,-155.0,0.00027397,2]
[311101262,1704905438605,-166.43,0.00027397,2]
[311101265,1704905438614,-500.0,0.00027397,2]
[311101267,1704905438623,-500.0,0.00027397,2]
[311101268,1704905438632,-500.0,0.00027397,2]
[311101271,1704905438642,-500.0,0.00027397,2]
[311101272,1704905438651,-768.35,0.00027397,2]
[311101274,1704905438660,-500.0,0.00027397,2]
[311101276,1704905438668,-500.0,0.00027397,2]
[311101278,1704905438676,-500.0,0.00027397,2]
[311101280,1704905438686,-500.0,0.00027397,2]
[311101282,1704905438695,-226.49621579,0.00027397,2]
[311101284,1704905438704,-346.92,0.00027397,2]
[311101287,1704905438713,-500.0,0.00027397,2]
[311101289,1704905438722,-500.0,0.00027397,2]
[311101290,1704905438731,-500.0,0.00027397,2]
[311101293,1704905438740,-500.0,0.00027397,2]
[311101295,1704905438750,-421.14,0.00027397,2]
[311101297,1704905438759,-307.60449464,0.00027397,2]
[311101299,1704905438768,-520.61168319,0.00027397,2]
[311101300,1704905438778,-692.84,0.00027397,2]
[311101302,1704905438787,-500.0,0.00027397,2]
[311101304,1704905438796,-500.0,0.00027397,2]
[311101306,1704905438805,-500.0,0.00027397,2]
[311101308,1704905438814,-500.0,0.00027397,2]
[311101310,1704905438823,-500.0,0.00027397,2]
[311101312,1704905438832,-500.0,0.00027397,2]
[311101314,1704905438842,-500.0,0.00027397,2]
[311101316,1704905438851,-500.0,0.00027397,2]
[311101318,1704905438860,-389.96,0.00027397,2]
[311101320,1704905438869,-500.0,0.00027397,2]
[311101322,1704905438879,-500.0,0.00027397,2]
[311101325,1704905438888,-500.0,0.00027397,2]
[311101327,1704905438898,-500.0,0.00027397,2]
[311101329,1704905438907,-500.0,0.00027397,2]
[311101331,1704905438916,-500.0,0.00027397,2]
[311101332,1704905438925,-2560.3,0.00027397,2]
[311101334,1704905438934,-500.0,0.00027397,2]
[311101337,1704905438943,-500.0,0.00027397,2]
[311101339,1704905438952,-500.0,0.00027397,2]
[311101340,1704905438961,-500.0,0.00027397,2]
[311101343,1704905438979,-749.17,0.00027397,2]
[311101346,1704905438991,-6597.4,0.00027397,2]
[311101348,1704905439001,-500.0,0.00027397,2]
[311101350,1704905439011,-565.54,0.00027397,2]
[311101352,1704905439020,-500.0,0.00027397,2]
[311101354,1704905439030,-1034.97,0.00027397,2]
[311101356,1704905439039,-500.0,0.00027397,2]
[311101358,1704905439050,-859.36,0.00027397,2]
[311101360,1704905439059,-500.0,0.00027397,2]
[311101362,1704905439069,-500.0,0.00027397,2]
[311101364,1704905439078,-500.0,0.00027397,2]
[311101366,1704905439087,-1154.97,0.00027397,2]
[311101368,1704905439096,-500.0,0.00027397,2]
[311101370,1704905439105,-500.0,0.00027397,2]
[311101373,1704905439115,-7135.96159157,0.00027669,2]
[311101375,1704905439124,-289.83188452,0.0002767,2]
[311101377,1704905439133,-573.06236947,0.0002767,2]
[311101379,1704905439142,-500.0,0.0002767,2]
[311101381,1704905439151,-500.0,0.0002767,2]
[311101383,1704905439159,-500.0,0.0002767,2]
[311101384,1704905439169,-500.0,0.0002767,2]
[311101386,1704905439178,-600.84226534,0.0002767,2]
[311101388,1704905439187,-500.0,0.0002767,2]
[311101391,1704905439196,-500.0,0.0002767,2]
[311101392,1704905439206,-426.56015875,0.0002767,2]
[311101394,1704905439215,-500.0,0.0002767,2]
[311101397,1704905439224,-500.0,0.0002767,2]
[311101399,1704905439234,-500.0,0.0002767,2]
[311101401,1704905439243,-500.0,0.0002767,2]
[311101403,1704905439252,-500.0,0.0002767,2]
[311101405,1704905439262,-500.0,0.0002767,2]
[311101407,1704905439272,-500.0,0.00027671,2]
[311101409,1704905439281,-599.20286518,0.00027671,2]
[311101411,1704905439290,-500.0,0.00027671,2]
[311101413,1704905439299,-500.0,0.00027671,2]
[311101415,1704905439308,-500.0,0.00027671,2]
[311101417,1704905439318,-500.0,0.00027671,2]
[311101419,1704905439327,-500.0,0.00027671,2]
[311101421,1704905439336,-500.0,0.00027671,2]
[311101423,1704905439345,-500.0,0.00027671,2]
[311101425,1704905439354,-500.0,0.00027671,2]
[311101427,1704905439364,-500.0,0.00027671,2]
[311101429,1704905439374,-500.0,0.00027671,2]
[311101431,1704905439383,-768.35,0.00027671,2]
[311101433,1704905439392,-171.62,0.00027671,2]
[311101435,1704905439402,-361.57825578,0.00027671,2]
[311101438,1704905439417,-138.42174422,0.00027671,2]
[311101440,1704905439426,-504.76831012,0.00027671,2]
[311101442,1704905439435,-500.0,0.00027671,2]
[311101444,1704905439444,-500.0,0.00027671,2]
[311101446,1704905439453,-692.84,0.00027671,2]
[311101448,1704905439462,-500.0,0.00027671,2]
[311101450,1704905439471,-502.54,0.00027671,2]
[311101452,1704905439482,-500.0,0.00027671,2]
[311101454,1704905439492,-500.0,0.00027671,2]
[311101456,1704905439501,-500.0,0.00027671,2]
[311101458,1704905439510,-500.0,0.00027671,2]
[311101460,1704905439520,-500.0,0.00027671,2]
[311101462,1704905439529,-500.0,0.00027671,2]
[311101464,1704905439538,-500.0,0.00027671,2]
[311101466,1704905439547,-2560.3,0.00027671,2]
[311101468,1704905439556,-500.0,0.00027671,2]
[311101470,1704905439567,-558.38,0.00027671,2]
[311101472,1704905439577,-500.0,0.00027671,2]
[311101474,1704905439586,-749.17,0.00027671,2]
[311101476,1704905439595,-6597.4,0.00027671,2]
[311101478,1704905439604,-500.0,0.00027671,2]
[311101480,1704905439613,-185.38,0.00027671,2]
[311101482,1704905439621,-1034.97,0.00027671,2]
[311101484,1704905439632,-500.0,0.00027671,2]
[311101486,1704905439641,-859.36,0.00027671,2]
[311101488,1704905439650,-1154.97,0.00027671,2]
[311101490,1704905439660,-493.76665639,0.00027671,2]
[311101492,1704905439669,-687.59711705,0.000277,2]
[311101494,1704905439679,-166.666666,0.00027734,2]
[311101496,1704905439687,-30249.42716514,0.00027845,4]
[311101498,1704905439697,-16364.47863232,0.00027847,3]
[311101500,1704905439706,-28721.55890525,0.0002785,4]
[311101502,1704905439715,-763.40324942,0.00027934,2]
[311101504,1704905439724,-300.0,0.00027934,2]
[311101506,1704905439733,-3313.2630203,0.00027934,2]
[311101508,1704905439743,-549.04160124,0.00027945,2]
[311101510,1704905439752,-500.0,0.00027945,2]
[311101512,1704905439761,-500.0,0.00027945,2]
[311101514,1704905439770,-500.0,0.00027945,2]
[311101516,1704905439780,-500.0,0.00027945,2]
[311101518,1704905439789,-500.0,0.00027945,2]
[311101520,1704905439799,-329.37006486,0.00027945,2]
[311101521,1704905439808,-500.0,0.00027945,2]
[311101522,1704905439817,-768.35,0.00027945,2]
[311101523,1704905439827,-500.0,0.00027945,2]
[311101524,1704905439837,-564.88,0.00027945,2]
[311101525,1704905439847,-692.84,0.00027945,2]
[311101526,1704905439857,-500.0,0.00027945,2]
[311101527,1704905439866,-500.0,0.00027945,2]
[311101528,1704905439876,-500.0,0.00027945,2]
[311101529,1704905439885,-500.0,0.00027945,2]
[311101530,1704905439895,-575.6,0.00027945,2]
[311101531,1704905439904,-500.0,0.00027945,2]
[311101532,1704905439913,-500.0,0.00027945,2]
[311101533,1704905439923,-500.0,0.00027945,2]
[311101534,1704905439932,-2560.3,0.00027945,2]
[311101535,1704905439942,-552.8,0.00027945,2]
[311101536,1704905439951,-500.0,0.00027945,2]
[311101537,1704905439960,-749.17,0.00027945,2]
[311101539,1704905439969,-6597.4,0.00027945,2]
[311101540,1704905439979,-500.0,0.00027945,2]
[311101542,1704905439992,-1034.97,0.00027945,2]
[311101544,1704905440002,-500.0,0.00027945,2]
[311101546,1704905440010,-859.36,0.00027945,2]
[311101548,1704905440022,-1154.97,0.00027945,2]
[311101550,1704905440031,-305.01426273,0.00028,2]
[311101552,1704905440041,-150.87929656,0.00028155,7]
[311101554,1704905440050,-500.0,0.00028219,2]
[311101556,1704905440059,-500.0,0.00028219,2]
[311101558,1704905440068,-591.96,0.00028219,2]
[311101560,1704905440078,-500.0,0.00028219,2]
[311101563,1704905440088,-500.0,0.00028219,2]
[311101565,1704905440098,-500.0,0.00028219,2]
[311101567,1704905440107,-768.35,0.00028219,2]
[311101569,1704905440116,-500.0,0.00028219,2]
[311101571,1704905440125,-692.84,0.00028219,2]
[311101573,1704905440134,-500.0,0.00028219,2]
[311101575,1704905440143,-500.0,0.00028219,2]
[311101577,1704905440152,-500.0,0.00028219,2]
[311101579,1704905440161,-500.0,0.00028219,2]
[311101581,1704905440171,-500.0,0.00028219,2]
[311101596,1704905440291,-500.0,0.00028219,2]
[311101599,1704905440320,-500.0,0.00028219,2]
[311101601,1704905440330,-2560.3,0.00028219,2]
[311101603,1704905440339,-500.0,0.00028219,2]
[311101605,1704905440348,-749.17,0.00028219,2]
[311101607,1704905440357,-6597.4,0.00028219,2]
[311101609,1704905440366,-500.0,0.00028219,2]
[311101611,1704905440376,-1034.97,0.00028219,2]
[311101612,1704905440385,-500.0,0.00028219,2]
[311101614,1704905440393,-859.36,0.00028219,2]
[311101616,1704905440402,-1154.97,0.00028219,2]
[311101618,1704905440412,-500.0,0.00028493,2]
[311101620,1704905440421,-500.0,0.00028493,2]
[311101623,1704905440431,-500.0,0.00028493,2]
[311101625,1704905440440,-500.0,0.00028493,2]
[311101627,1704905440449,-500.0,0.00028493,2]
[311101629,1704905440458,-768.35,0.00028493,2]
[311101630,1704905440467,-500.0,0.00028493,2]
[311101633,1704905440479,-692.84,0.00028493,2]
[311101635,1704905440488,-500.0,0.00028493,2]
[311101637,1704905440497,-500.0,0.00028493,2]
[311101639,1704905440507,-500.0,0.00028493,2]
[311101640,1704905440515,-500.0,0.00028493,2]
[311101642,1704905440524,-500.0,0.00028493,2]
[311101644,1704905440533,-500.0,0.00028493,2]
[311101646,1704905440543,-500.0,0.00028493,2]
[311101648,1704905440552,-2560.3,0.00028493,2]
[311101650,1704905440561,-500.0,0.00028493,2]
[311101652,1704905440570,-749.17,0.00028493,2]
[311101654,1704905440580,-6597.4,0.00028493,2]
[311101656,1704905440589,-500.0,0.00028493,2]
[311101659,1704905440598,-1034.97,0.00028493,2]
[311101661,1704905440608,-500.0,0.00028493,2]
[311101663,1704905440617,-859.36,0.00028493,2]
[311101665,1704905440628,-1154.97,0.00028493,2]
[311101667,1704905440637,-199.63396388,0.00028573,2]
[311101669,1704905440647,-150.87929656,0.0002873,4]
[311101671,1704905440655,-500.0,0.00028767,2]
[311101673,1704905440665,-500.0,0.00028767,2]
[311101675,1704905440674,-500.0,0.00028767,2]
[311101677,1704905440683,-254.00672133,0.00028767,2]
[311101679,1704905440692,-500.0,0.00028767,2]
[311101681,1704905440701,-500.0,0.00028767,2]
[311101683,1704905440710,-768.35,0.00028767,2]
[311101685,1704905440719,-500.0,0.00028767,2]
[311101687,1704905440728,-692.84,0.00028767,2]
[311101689,1704905440737,-500.0,0.00028767,2]
[311101691,1704905440746,-500.0,0.00028767,2]
[311101693,1704905440755,-500.0,0.00028767,2]
[311101695,1704905440764,-500.0,0.00028767,2]
[311101697,1704905440773,-500.0,0.00028767,2]
[311101699,1704905440782,-155.38317733,0.00028767,2]
[311101701,1704905440791,-501.86717787,0.00028767,2]
[311101703,1704905440800,-2560.3,0.00028767,2]
[311101705,1704905440809,-500.0,0.00028767,2]
[311101707,1704905440818,-749.17,0.00028767,2]
[311101708,1704905440826,-6597.4,0.00028767,2]
[311101710,1704905440835,-500.0,0.00028767,2]
[311101712,1704905440845,-1034.97,0.00028767,2]
[311101714,1704905440854,-500.0,0.00028767,2]
[311101716,1704905440863,-859.36,0.00028767,2]
[311101719,1704905440873,-1154.97,0.00028767,2]
[311101720,1704905440885,-480.94,0.00029,2]
[311101722,1704905440894,-5999.98,0.00029,2]
[311101724,1704905440904,-708.69,0.00029039,2]
[311101726,1704905440913,-708.69,0.00029039,2]
[311101728,1704905440922,-708.69,0.00029039,2]
[311101730,1704905440932,-708.69,0.00029039,2]
[311101732,1704905440941,-708.69,0.00029039,2]
[311101734,1704905440950,-708.69,0.00029039,2]
[311101736,1704905440960,-708.69,0.00029039,2]
[311101738,1704905440969,-708.69,0.00029039,2]
[311101740,1704905440978,-708.69,0.00029039,2]
[311101742,1704905440987,-500.0,0.0002904,4]
[311101744,1704905440997,-505.94427557,0.0002904,4]
[311101747,1704905441006,-500.0,0.0002904,4]
[311101749,1704905441017,-288.75660342,0.0002904,4]
[311101751,1704905441027,-408.57155719,0.0002904,4]
[311101753,1704905441036,-500.0,0.0002904,4]
[311101755,1704905441045,-153101.98351898,0.0002904,2]
[311101757,1704905441058,-1140.06440702,0.0002904,2]
[311101792,1704905441382,-326.73090334,0.00027385,2]
[311101794,1704905441391,-500.0,0.00027397,2]
[311101796,1704905441401,-500.0,0.00027397,2]
[311101798,1704905441410,-489.7149111,0.0002767,2]
[311101801,1704905441419,-3569.82563064,0.0002904,2]
[311101803,1704905441431,-3995.56040367,0.0002904,2]
[311102750,1704906352091,-322.83363774,0.00016109,2]
[311102751,1704906352112,-154.86062544,0.0001611,2]
[311102752,1704906352134,-178.51706094,0.0001611,2]
[311102753,1704906352154,-154.86062544,0.0001611,2]
[311102754,1704906352174,-253.55669293,0.0001611,2]
[311102755,1704906352195,-174.8658683,0.0001611,2]
[311102756,1704906352215,-322.41839503,0.0001611,2]
[311102757,1704906352235,-3478.12894861,0.0001611,2]
[311102758,1704906352255,-285.7548216,0.0001611,2]
[311102759,1704906352274,-4788.51765555,0.0001611,2]
[311102760,1704906352294,-860.80550823,0.0001611,2]
[311102761,1704906352313,-1466.07383029,0.0001611,2]
[311102762,1704906352332,-191.01244923,0.0001611,2]
[311102763,1704906352351,-154.86062544,0.00016111,2]
[311102764,1704906352372,-1250.66144998,0.00016111,2]
[311102765,1704906352391,-520.97192037,0.00016111,2]
[311102766,1704906352412,-164.24940589,0.00016111,2]
[311102767,1704906352433,-15450.99977236,0.00016111,2]
[311102771,1704906363674,1191.80630754,0.00012084,2]
[311102773,1704906405181,-264.87381963,0.00014494,2]
[311102774,1704906405202,-154.86062544,0.00014495,2]
[311102775,1704906405223,-509.00763511,0.00014495,2]
[311102776,1704906405243,-2029.97306616,0.00014495,2]
[311102777,1704906405263,-976.0012481,0.00014495,2]
[311102778,1704906405285,-154.86062544,0.00014495,2]
[311102779,1704906405306,-4605.6407387,0.00014495,2]
[311102780,1704906405326,-976.0012481,0.00014495,2]
[311102781,1704906405347,-154.86062544,0.00014496,2]
[311102782,1704906405367,-560.45578552,0.00014496,2]
[311102783,1704906405387,-1030.59482552,0.00014496,2]
[311102784,1704906405407,-7943.71182072,0.00014496,2]
[311102785,1704906405428,-261.7761853,0.00014496,2]
[311102786,1704906405448,-525.62118693,0.00014496,2]
[311102787,1704906405468,-166.61009921,0.00014496,2]
[311102788,1704906405487,-451.74832768,0.00014497,2]
[311102789,1704906405507,-154.86062544,0.00014497,2]
[311102790,1704906405527,-154.86062544,0.00014497,2]
[311102791,1704906405548,-3737.95560178,0.00014497,2]
[311102792,1704906405571,-164.91655517,0.00014497,2]
[311102793,1704906405591,-154.86062544,0.00014497,2]
[311102794,1704906405610,-154.86062544,0.00014497,2]
[311102795,1704906405630,-154.86062544,0.00014497,2]
[311102796,1704906405650,-312.98141829,0.00014497,2]
[311102797,1704906405674,-178.44106149,0.00014497,2]
[311102798,1704906405694,-901.68385165,0.00014498,2]
[311102799,1704906405714,-366.07525278,0.00014498,2]
[311102800,1704906405734,-154.86062544,0.00014498,2]
[311102801,1704906405753,-230.48582873,0.00014498,2]
[311102802,1704906405774,-260.30288884,0.00014498,2]
[311102803,1704906405794,-1575.9466697,0.00014498,2]
[311102804,1704906405815,-20401.44925593,0.00014498,2]
[311102805,1704906405855,2702.6697973,0.00014494,5]
[311102806,1704906405902,8743.9820779,0.00011721,2]
[311102808,1704906416526,641.73821457,0.00012084,2]
[311102809,1704906417951,154.87609912,0.00012084,2]
[311102810,1704906423377,1924.08949227,0.00014496,5]
[311102811,1704906427754,8544.36441097,0.00011721,2]
[311102812,1704906432325,-2708.4877235,0.0001449,2]
[311102813,1704906432348,-162.75529733,0.00014491,2]
[311102814,1704906432380,-290.33714823,0.00014491,2]
[311102815,1704906432404,-322.41839503,0.00014491,2]
[311102816,1704906432425,-1239.896093,0.00014491,2]
[311102817,1704906432447,-154.87609912,0.00014491,2]
[311102818,1704906432469,-521.10576847,0.00014491,2]
[311102819,1704906432491,-17125.48905595,0.00014491,2]
[311102821,1704906439876,171.66764837,0.00013046,2]
[311102823,1704906507676,-36890.05042447,0.00013693,2]
[311102824,1704906507699,-154.87609912,0.00013693,2]
[311102825,1704906507720,-521.10576847,0.00013693,2]
[311102826,1704906507754,-964.55150019,0.00013693,2]